bitfinex-derivatives/quotes_BTCF0:USTF0_20250626
["timestamp","ask_amount","ask_price","bid_price","bid_amount"]
[1750910446299,0.92365451,107990.0,107980.0,0.3608]
[1750910446491,0.95235554,107990.0,107980.0,0.5459178]
[1750910446691,1.31315554,107990.0,107980.0,0.1851178]
[1750910448392,0.1851178,107980.0,107970.0,0.5459214]
[1750910448601,0.85645533,107980.0,107970.0,0.5459214]
[1750910449488,0.85845533,107980.0,107970.0,0.5459214]
[1750910450692,0.85845533,107980.0,107970.0,0.3618]
[1750910450997,0.85845533,107980.0,107970.0,0.001]
[1750910452906,0.85845533,107980.0,107970.0,0.186135]
[1750910453399,0.85845533,107980.0,107970.0,0.001]
[1750910453603,0.82977161,107980.0,107970.0,0.001]
[1750910454105,1.67652683,107980.0,107970.0,0.001]
[1750910454308,1.42652683,107980.0,107970.0,0.001]
[1750910454701,1.78732683,107980.0,107970.0,0.001]
[1750910456906,1.50927302,107980.0,107970.0,0.001]
[1750910457102,1.78732683,107980.0,107970.0,0.001]
[1750910457701,1.97255883,107980.0,107970.0,0.001]
[1750910459408,2.33335883,107980.0,107970.0,0.001]
[1750910463110,2.14812683,107980.0,107970.0,0.001]
[1750910463316,2.33335883,107980.0,107970.0,0.001]
[1750910465417,2.14812683,107980.0,107970.0,0.001]
[1750910465616,2.33335883,107980.0,107970.0,0.001]
[1750910468313,1.97255883,107980.0,107970.0,0.001]
[1750910468518,2.33335883,107980.0,107970.0,0.001]
[1750910469720,2.14812683,107980.0,107970.0,0.001]
[1750910472317,2.33335883,107980.0,107970.0,0.001]
[1750910472521,0.46320591,107960.0,107950.0,0.2179554]
[1750910472721,1.37136591,107960.0,107950.0,0.21758362]
[1750910473018,1.40296591,107960.0,107950.0,0.21758362]
[1750910473819,1.40296591,107960.0,107950.0,0.22258362]
[1750910474015,1.79376591,107960.0,107950.0,0.0378]
[1750910474218,2.10041826,107960.0,107950.0,0.005]
[1750910474929,2.10041826,107960.0,107950.0,0.006]
[1750910476327,2.53568226,107960.0,107950.0,1e-07]
[1750910477226,2.28568226,107960.0,107950.0,1e-07]
[1750910478732,2.41892226,107960.0,107950.0,1e-07]
[1750910479023,2.41892226,107960.0,107950.0,0.0010001]
[1750910479923,1.86281464,107960.0,107950.0,0.0010001]
[1750910480120,2.41892226,107960.0,107950.0,0.0010001]
[1750910481829,2.41892226,107960.0,107950.0,0.001]
[1750910482030,2.41992226,107960.0,107950.0,0.001]
[1750910486530,2.78072226,107960.0,107950.0,1e-07]
[1750910487332,2.87335344,107960.0,107950.0,1e-07]
[1750910488331,2.87335344,107960.0,107920.0,0.06282657]
[1750910488332,3.09200134,107960.0,107920.0,0.06282657]
[1750910488529,0.82405731,107930.0,107920.0,0.03092657]
[1750910488835,1.77185585,107930.0,107920.0,0.03092657]
[1750910489026,1.86525585,107930.0,107920.0,0.03092657]
[1750910489226,1.94003298,107930.0,107920.0,0.03092657]
[1750910489535,1.94103298,107930.0,107920.0,0.03692657]
[1750910489736,1.86625585,107930.0,107920.0,0.03692657]
[1750910491137,1.86525585,107930.0,107920.0,0.03292657]
[1750910492335,1.87447963,107930.0,107920.0,0.03292657]
[1750910494832,1.94870827,107930.0,107920.0,0.03292657]
[1750910495033,1.30808449,107930.0,107920.0,0.03292657]
[1750910495230,1.97940449,107930.0,107920.0,0.21814727]
[1750910495430,1.27688449,107930.0,107920.0,0.24904727]
[1750910495743,1.97940449,107930.0,107920.0,0.06382657]
[1750910497633,1.13404204,107930.0,107920.0,0.60984727]
[1750910498032,1.41209585,107930.0,107920.0,0.06382657]
[1750910498739,0.84185585,107930.0,107920.0,0.06382657]
[1750910499036,1.41205585,107930.0,107920.0,0.06382657]
[1750910499537,1.77285585,107930.0,107920.0,0.06382657]
[1750910501037,1.80295585,107930.0,107920.0,0.06382657]
[1750910501437,1.80295585,107930.0,107920.0,0.03292657]
[1750910501737,1.83415585,107930.0,107920.0,0.03292657]
[1750910502132,1.86705585,107930.0,107920.0,0.03292657]
[1750910506942,1.86705585,107930.0,107920.0,0.00292657]
[1750910512340,0.0463105,107910.0,107890.0,0.36172683]
[1750910512648,1.39386881,107900.0,107890.0,0.09512683]
[1750910512851,1.80326735,107900.0,107890.0,0.09512683]
[1750910513345,1.81239531,107900.0,107890.0,0.03232683]
[1750910513538,1.80326735,107900.0,107890.0,0.03232683]
[1750910513937,1.52521354,107900.0,107890.0,0.03432683]
[1750910514142,1.41190735,107900.0,107890.0,0.21959893]
[1750910514343,1.41190735,107900.0,107890.0,0.24999893]
[1750910515545,1.13485354,107900.0,107890.0,0.06772683]
[1750910515749,1.41290735,107900.0,107890.0,0.25299893]
[1750910517342,1.41290735,107900.0,107890.0,0.06772683]
[1750910518850,1.41290735,107900.0,107890.0,0.25299893]
[1750910519049,1.44290735,107900.0,107890.0,0.25299893]
[1750910520147,1.44290735,107900.0,107890.0,0.61379893]
[1750910520547,1.44290735,107900.0,107890.0,0.25299893]
[1750910521858,1.80370735,107900.0,107890.0,0.06772683]
[1750910522159,1.44290735,107900.0,107890.0,0.25299903]
[1750910522358,1.44290735,107900.0,107890.0,0.06772683]
[1750910522559,0.87290735,107900.0,107890.0,0.06772683]
[1750910522762,1.44318735,107900.0,107890.0,0.06772683]
[1750910523058,1.44318735,107900.0,107890.0,0.03732683]
[1750910523759,1.41458881,107900.0,107890.0,0.03732683]
[1750910525962,1.41458881,107900.0,107890.0,0.22259893]
[1750910531367,1.41458881,107900.0,107890.0,0.03732683]
[1750910531665,1.44678881,107900.0,107890.0,0.03732683]
[1750910533777,1.47494909,107900.0,107890.0,0.03732683]
[1750910534268,1.47494909,107900.0,107890.0,0.00592683]
[1750910534463,1.83574909,107900.0,107890.0,0.00592683]
[1750910536372,1.80758881,107900.0,107890.0,0.00592683]
[1750910536669,1.835757,107900.0,107890.0,0.00592683]
[1750910537867,1.55770319,107900.0,107890.0,0.00592683]
[1750910538067,1.835757,107900.0,107890.0,0.00592683]
[1750910540770,0.1853065,107870.0,107860.0,0.00677428]
[1750910540967,1.8017685,107870.0,107860.0,0.00677428]
[1750910541270,1.8985685,107870.0,107860.0,0.00677428]
[1750910541979,1.8995685,107870.0,107860.0,0.01977428]
[1750910542474,1.97298138,107870.0,107860.0,0.01977428]
[1750910543473,1.97298138,107870.0,107860.0,0.01377428]
[1750910543676,1.97298138,107870.0,107860.0,0.01777428]
[1750910544175,1.94481319,107870.0,107860.0,0.01777428]
[1750910546069,1.9728999,107870.0,107860.0,0.01777428]
[1750910547876,1.4034599,107870.0,107860.0,0.01777428]
[1750910548069,2.1071399,107870.0,107860.0,0.01777428]
[1750910549978,1.4034599,107870.0,107860.0,0.01777428]
[1750910550167,2.1071399,107870.0,107860.0,0.01777428]
[1750910552069,1.4034599,107870.0,107860.0,0.01777428]
[1750910552274,0.70381938,107870.0,107860.0,0.56389798]
[1750910552574,0.3263065,107870.0,107860.0,0.65969798]
[1750910552876,0.8977465,107870.0,107860.0,0.65969798]
[1750910553878,0.3263065,107870.0,107860.0,0.65969798]
[1750910554274,0.60436031,107870.0,107860.0,0.65969798]
[1750910554775,0.3263065,107870.0,107860.0,0.65969798]
[1750910558774,0.3263065,107870.0,107860.0,0.84511398]
[1750910558983,0.3263065,107870.0,107860.0,1.75316779]
[1750910559179,0.3263065,107870.0,107860.0,1.50316779]
[1750910559581,0.3263065,107870.0,107860.0,1.12316779]
[1750910560286,0.3263065,107870.0,107860.0,0.84511398]
[1750910561886,0.60436031,107870.0,107860.0,0.84511398]
[1750910562783,0.60436031,107870.0,107860.0,1.41679398]
[1750910563084,0.60436031,107870.0,107860.0,0.84511398]
[1750910563585,0.60436031,107870.0,107860.0,0.65969798]
[1750910563785,0.80516031,107870.0,107860.0,0.65969798]
[1750910564486,0.80516031,107870.0,107860.0,0.62699798]
[1750910564688,0.83816031,107870.0,107860.0,0.62699798]
[1750910565185,0.83816031,107870.0,107860.0,0.23509798]
[1750910566688,0.52816031,107870.0,107860.0,0.23509798]
[1750910566989,0.49516031,107870.0,107860.0,0.26629798]
[1750910567790,0.2171065,107870.0,107860.0,0.26629798]
[1750910569190,0.2171065,107870.0,107860.0,0.62709798]
[1750910572695,0.1863065,107870.0,107860.0,0.90515179]
[1750910573791,0.1863065,107870.0,107860.0,0.62709798]
[1750910575095,0.001,107870.0,107860.0,1.22515179]
[1750910575293,0.1863065,107870.0,107860.0,1.22515179]
[1750910578795,0.001,107870.0,107860.0,1.22515179]
[1750910579187,0.001,107870.0,107860.0,0.90515179]
[1750910579393,0.1863065,107870.0,107860.0,1.25515179]
[1750910579893,0.1863065,107870.0,107860.0,0.90515179]
[1750910580097,0.1863065,107870.0,107860.0,1.22515179]
[1750910580298,0.1863065,107870.0,107860.0,0.90515179]
[1750910580497,0.1863065,107870.0,107860.0,1.22515179]
[1750910581202,0.1863065,107870.0,107860.0,0.94709798]
[1750910581699,0.1863065,107870.0,107860.0,1.22515179]
[1750910582396,0.001,107870.0,107860.0,1.22515179]
[1750910584399,0.1863065,107870.0,107860.0,0.90515179]
[1750910584902,0.2169065,107870.0,107860.0,0.90515179]
[1750910586103,0.2169065,107870.0,107860.0,0.87395179]
[1750910591214,0.2169065,107870.0,107860.0,0.59589798]
[1750910591610,0.49496031,107870.0,107860.0,0.59589798]
[1750910591810,0.52606031,107870.0,107860.0,0.59589798]
[1750910593115,0.2480065,107870.0,107860.0,0.59589798]
[1750910593311,0.52606031,107870.0,107860.0,0.59589798]
[1750910593713,0.52606031,107870.0,107860.0,0.56389798]
[1750910594916,0.52606031,107870.0,107860.0,0.77533798]
[1750910600519,0.88606031,107870.0,107860.0,0.77497798]
[1750910601624,0.6080065,107870.0,107860.0,0.77497798]
[1750910601824,0.88606031,107870.0,107860.0,0.77497798]
[1750910602423,0.88606031,107870.0,107860.0,0.20309798]
[1750910603226,0.91422424,107870.0,107860.0,0.20309798]
[1750910605124,0.88606031,107870.0,107860.0,0.20309798]
[1750910605920,1.24686031,107870.0,107860.0,0.20309798]
[1750910606221,1.2749868,107870.0,107860.0,0.20309798]
[1750910608625,0.9149868,107870.0,107860.0,0.20309798]
[1750910608931,1.0649868,107870.0,107860.0,0.20309798]
[1750910610527,0.78693299,107870.0,107860.0,0.20309798]
[1750910610729,1.0649868,107870.0,107860.0,0.20309798]
[1750910612728,0.7041868,107870.0,107860.0,0.20309798]
[1750910613337,0.42613299,107870.0,107860.0,0.20309798]
[1750910613633,0.3980065,107870.0,107860.0,0.23359798]
[1750910615137,0.67606031,107870.0,107860.0,0.23359798]
[1750910616939,0.3980065,107870.0,107860.0,0.23359798]
[1750910617138,0.67606031,107870.0,107860.0,0.23359798]
[1750910619143,0.70414697,107870.0,107860.0,0.23359798]
[1750910620142,0.64496031,107870.0,107860.0,0.59439798]
[1750910622442,0.57577755,107870.0,107860.0,0.59439798]
[1750910623142,0.60378804,107870.0,107860.0,0.59439798]
[1750910629746,0.63698804,107870.0,107860.0,0.59439798]
[1750910633447,0.66868804,107870.0,107860.0,0.59439798]
[1750910636350,0.51868804,107870.0,107860.0,0.59439798]
[1750910636557,0.51868804,107870.0,107860.0,0.56389798]
[1750910636850,0.82868804,107870.0,107860.0,0.56389798]
[1750910637153,1.03755909,107870.0,107860.0,0.56389798]
[1750910639952,1.03755909,107870.0,107860.0,0.20309798]
[1750910640149,1.03755909,107870.0,107860.0,0.01777428]
[1750910640947,1.39835909,107870.0,107860.0,0.01777428]
[1750910643957,0.1853408,107850.0,107840.0,0.19484406]
[1750910644258,0.72421185,107850.0,107840.0,0.19484406]
[1750910644449,0.81981185,107850.0,107840.0,0.19484406]
[1750910645155,1.18061185,107850.0,107840.0,0.19984406]
[1750910645853,1.18161185,107850.0,107840.0,0.20584406]
[1750910646050,1.18161185,107850.0,107840.0,0.1963435]
[1750910646449,0.9727408,107850.0,107840.0,0.1963435]
[1750910646653,1.18161185,107850.0,107840.0,0.1963435]
[1750910648158,0.6119408,107850.0,107840.0,0.1963435]
[1750910648349,0.82081185,107850.0,107840.0,0.1963435]
[1750910648749,1.18161185,107850.0,107840.0,0.1963435]
[1750910649255,1.18161185,107850.0,107840.0,0.20585938]
[1750910651357,1.18161185,107850.0,107840.0,0.1963435]
[1750910652259,1.3904829,107850.0,107840.0,0.1963435]
[1750910655261,1.3904829,107850.0,107840.0,0.011]
[1750910657262,1.41829625,107850.0,107840.0,0.011]
[1750910657760,1.41829625,107850.0,107800.0,0.5995086]
[1750910657761,2.50388765,107850.0,107800.0,0.5995086]
[1750910657967,0.39428065,107810.0,107800.0,0.9548646]
[1750910658165,0.1854096,107810.0,107800.0,0.9876646]
[1750910658356,0.49481178,107810.0,107800.0,0.9876646]
[1750910658857,0.49481178,107810.0,107800.0,0.6976646]
[1750910659059,0.49481178,107810.0,107800.0,0.7287646]
[1750910659262,0.2160096,107810.0,107800.0,0.7327646]
[1750910660268,0.2160096,107810.0,107800.0,0.7347646]
[1750910660269,0.2180096,107810.0,107800.0,0.7347646]
[1750910661157,0.49681178,107810.0,107800.0,0.62044945]
[1750910661361,0.86681178,107810.0,107800.0,0.62044945]
[1750910661557,0.49681178,107810.0,107800.0,0.62044945]
[1750910661757,0.49681178,107810.0,107800.0,0.25964945]
[1750910661953,0.49681178,107810.0,107800.0,0.07422445]
[1750910662263,0.2180096,107810.0,107800.0,0.0319276]
[1750910662460,1.80235178,107810.0,107800.0,0.0119276]
[1750910663161,1.24155178,107810.0,107800.0,0.1973544]
[1750910663360,1.22155178,107810.0,107800.0,0.1973544]
[1750910663560,1.10155178,107810.0,107800.0,0.1933544]
[1750910663765,1.44055178,107810.0,107800.0,0.1933544]
[1750910664168,1.1617496,107810.0,107800.0,0.01738727]
[1750910664366,1.41649178,107810.0,107800.0,0.20281427]
[1750910664562,1.07649178,107810.0,107800.0,0.59381427]
[1750910664962,0.1864096,107810.0,107800.0,0.65841427]
[1750910666268,0.1864096,107810.0,107800.0,1.00841427]
[1750910666269,0.001,107810.0,107800.0,1.00841427]
[1750910666472,0.001,107810.0,107800.0,1.39105645]
[1750910666968,0.2780824,107830.0,107820.0,0.1853924]
[1750910667269,0.5980824,107830.0,107820.0,0.5461924]
[1750910667570,0.6282824,107830.0,107820.0,0.5780924]
[1750910667867,0.6282824,107830.0,107820.0,0.6081924]
[1750910668068,0.90908458,107830.0,107820.0,0.6081924]
[1750910668868,0.91208458,107830.0,107820.0,0.6091924]
[1750910669372,0.6332824,107830.0,107820.0,0.6392924]
[1750910669568,0.6030824,107830.0,107820.0,0.6392924]
[1750910669957,0.6010824,107830.0,107820.0,0.6392924]
[1750910670161,0.5990824,107830.0,107820.0,0.6392924]
[1750910671170,0.87788458,107830.0,107820.0,0.5790924]
[1750910671372,0.90798458,107830.0,107820.0,0.5790924]
[1750910672765,0.93948458,107830.0,107820.0,0.5471924]
[1750910676480,0.93948458,107830.0,107820.0,0.1863924]
[1750910677680,0.65692457,107830.0,107820.0,0.5791924]
[1750910678581,0.34874217,107830.0,107820.0,1.36183458]
[1750910678875,0.63397038,107850.0,107840.0,0.1853581]
[1750910679080,1.00397038,107850.0,107840.0,0.5461581]
[1750910679270,1.03527038,107850.0,107840.0,0.5461581]
[1750910679471,0.1853581,107840.0,107830.0,0.2157753]
[1750910679672,0.88656028,107840.0,107830.0,0.2157753]
[1750910680776,1.28286028,107840.0,107830.0,0.2167753]
[1750910681085,1.28286028,107840.0,107830.0,0.1863753]
[1750910682574,0.1903581,107840.0,107830.0,1.18597748]
[1750910682782,0.1903581,107840.0,107830.0,0.6104753]
[1750910682980,0.1903581,107840.0,107830.0,1.19927748]
[1750910683178,0.1903581,107840.0,107830.0,0.88927748]
[1750910684685,0.005,107840.0,107830.0,0.88927748]
[1750910686280,0.005,107840.0,107830.0,1.20027748]
[1750910686680,0.0638,107860.0,107850.0,0.1853409]
[1750910686982,0.0322,107870.0,107860.0,0.1853237]
[1750910687188,0.394,107870.0,107860.0,0.82492588]
[1750910687385,0.394,107870.0,107860.0,0.85592588]
[1750910688086,0.394,107870.0,107860.0,0.5771237]
[1750910688586,0.403,107870.0,107860.0,0.5781237]
[1750910688888,0.5883065,107870.0,107860.0,0.5781237]
[1750910689187,0.5933065,107870.0,107860.0,0.5781237]
[1750910689791,0.408,107870.0,107860.0,0.5781237]
[1750910690589,0.408,107870.0,107860.0,0.58759175]
[1750910691286,0.408,107870.0,107860.0,1.44535393]
[1750910691494,0.015,107870.0,107860.0,1.51105393]
[1750910692295,0.015,107870.0,107860.0,2.29746993]
[1750910693989,0.009,107870.0,107860.0,2.29746993]
[1750910694196,0.004,107870.0,107860.0,2.3722993]
[1750910694496,0.006,107870.0,107860.0,2.3722993]
[1750910696696,1e-07,107870.0,107860.0,2.3722993]
[1750910697891,0.0626,107900.0,107890.0,0.1852722]
[1750910698092,0.0313,107900.0,107890.0,1.89323438]
[1750910698394,0.0313,107900.0,107890.0,1.98773438]
[1750910698894,0.001,107900.0,107890.0,1.98773438]
[1750910699198,0.0309,107910.0,107900.0,0.185255]
[1750910699494,0.0631,107920.0,107910.0,0.1852378]
[1750910699695,0.414,107920.0,107910.0,0.85613998]
[1750910699893,0.414,107920.0,107910.0,1.43577998]
[1750910700290,0.32,107920.0,107910.0,1.57437998]
[1750910700597,0.063,107930.0,107920.0,0.1852207]
[1750910700895,0.063,107930.0,107920.0,0.2168207]
[1750910700896,0.3182035,107930.0,107920.0,0.2168207]
[1750910701098,0.3503035,107930.0,107920.0,0.2168207]
[1750910701693,0.3583035,107930.0,107920.0,0.2178207]
[1750910701895,0.89710568,107930.0,107920.0,0.1862207]
[1750910702598,0.6233035,107930.0,107920.0,0.1862207]
[1750910702789,0.90210568,107930.0,107920.0,0.1862207]
[1750910704398,0.6233035,107930.0,107920.0,0.1862207]
[1750910706590,1.26290568,107930.0,107920.0,0.001]
[1750910707296,1.29044402,107930.0,107920.0,0.001]
[1750910707692,1.29044402,107930.0,107920.0,0.1862207]
[1750910708094,0.65084184,107930.0,107920.0,0.1862207]
[1750910708300,1.01164184,107930.0,107920.0,0.1862207]
[1750910708495,1.29044402,107930.0,107920.0,0.1862207]
[1750910709400,1.33044402,107930.0,107920.0,0.1862207]
[1750910709603,1.05164184,107930.0,107920.0,0.1862207]
[1750910709803,1.16044402,107930.0,107920.0,0.1862207]
[1750910710302,0.79964402,107930.0,107920.0,0.1862207]
[1750910710504,0.52084184,107930.0,107920.0,0.1862207]
[1750910710705,0.79964402,107930.0,107920.0,0.1862207]
[1750910712202,0.52084184,107930.0,107920.0,0.1862207]
[1750910712503,0.79964402,107930.0,107920.0,0.1862207]
[1750910717305,0.87337639,107930.0,107920.0,0.1862207]
[1750910722703,1.23417639,107930.0,107920.0,0.001]
[1750910723908,1.16044402,107930.0,107920.0,0.001]
[1750910724313,1.23417639,107930.0,107920.0,0.001]
[1750910726011,1.23417639,107930.0,107900.0,1.27524508]
[1750910726012,0.1852379,107910.0,107900.0,0.8015468]
[1750910726214,0.80157842,107910.0,107900.0,0.4407468]
[1750910726409,0.89627842,107910.0,107900.0,0.4407468]
[1750910728314,0.90227842,107910.0,107900.0,0.4417468]
[1750910728616,0.90327842,107910.0,107900.0,0.4417468]
[1750910729828,0.90327842,107910.0,107900.0,0.3035868]
[1750910730625,0.90327842,107910.0,107900.0,0.29407547]
[1750910731331,0.90327842,107910.0,107900.0,0.24776347]
[1750910732730,0.90327842,107910.0,107900.0,0.20145207]
[1750910734030,0.90327842,107910.0,107900.0,0.20146657]
[1750910734425,0.52977624,107910.0,107900.0,0.48026875]
[1750910734620,0.56157624,107910.0,107900.0,0.51336875]
[1750910734926,0.56157624,107910.0,107900.0,0.23456657]
[1750910735127,0.03453834,107910.0,107900.0,1.27656875]
[1750910735322,0.03453834,107910.0,107900.0,1.30936875]
[1750910735531,0.03453834,107910.0,107900.0,1.88828875]
[1750910737333,0.03453834,107910.0,107900.0,1.51828875]
[1750910737533,0.03453834,107910.0,107900.0,1.82828875]
[1750910740330,0.007,107910.0,107900.0,1.82828875]
[1750910740539,0.007,107910.0,107900.0,2.01364075]
[1750910742635,0.007,107910.0,107900.0,1.82828875]
[1750910746242,0.1922379,107910.0,107900.0,0.67156657]
[1750910746443,0.2232379,107910.0,107900.0,1.66516875]
[1750910748043,0.2232379,107910.0,107900.0,1.30436875]
[1750910748244,0.2232379,107910.0,107900.0,1.66516875]
[1750910749346,0.2232379,107910.0,107900.0,1.66416875]
[1750910749544,0.2232379,107910.0,107900.0,1.66516875]
[1750910751242,0.2232379,107910.0,107900.0,1.66416875]
[1750910751447,0.2232379,107910.0,107900.0,1.66516875]
[1750910751658,0.2232379,107910.0,107900.0,1.63236875]
[1750910751839,0.2559379,107910.0,107900.0,1.58896875]
[1750910752034,0.5859379,107910.0,107900.0,1.58896875]
[1750910752242,0.2559379,107910.0,107900.0,1.58896875]
[1750910752447,0.6159379,107910.0,107900.0,1.58896875]
[1750910752647,0.2559379,107910.0,107900.0,1.58896875]
[1750910755545,0.2559379,107910.0,107900.0,1.58996875]
[1750910758552,0.2559379,107910.0,107900.0,1.61312875]
[1750910759657,0.0707,107910.0,107900.0,1.61212875]
[1750910759851,0.038,107910.0,107900.0,1.98312875]
[1750910760051,0.007,107910.0,107900.0,2.01492875]
[1750910764560,0.03494969,107910.0,107900.0,2.01492875]
[1750910772966,0.03494969,107910.0,107900.0,1.71492875]
[1750910773263,0.03494969,107910.0,107900.0,1.96492875]
[1750910774166,0.007,107910.0,107900.0,1.96492875]
[1750910776668,0.0384,107910.0,107900.0,1.96492875]
[1750910777663,0.0384,107910.0,107900.0,1.39612657]
[1750910777972,0.0384,107910.0,107900.0,1.64492875]
[1750910778174,0.0384,107910.0,107900.0,1.96492875]
[1750910780983,0.0384,107910.0,107900.0,1.92312875]
[1750910782384,0.0384,107910.0,107900.0,1.95452875]
[1750910786293,0.06645993,107910.0,107900.0,1.95452875]
[1750910788288,0.06645993,107910.0,107900.0,2.09303703]
[1750910789485,0.0328,107920.0,107910.0,0.1852379]
[1750910789680,0.06013437,107920.0,107910.0,1.33404836]
[1750910790683,0.06313437,107920.0,107910.0,1.33404836]
[1750910792184,0.06813437,107920.0,107910.0,1.33504836]
[1750910792490,0.06813437,107920.0,107910.0,1.19589313]
[1750910792788,0.06813437,107920.0,107910.0,1.21905313]
[1750910793990,0.008,107920.0,107910.0,1.28485313]
[1750910794791,0.001,107930.0,107920.0,0.1862207]
[1750910795089,0.001,107930.0,107920.0,1.95493834]
[1750910796194,0.006,107930.0,107920.0,1.95593834]
[1750910797390,0.006,107930.0,107920.0,2.23409357]
[1750910798190,0.0309,107940.0,107930.0,0.1852036]
[1750910798393,0.0309,107940.0,107930.0,1.21855883]
[1750910798788,0.0309,107940.0,107930.0,1.24975883]
[1750910798989,0.0631,107950.0,107940.0,0.1851864]
[1750910799190,0.0903,107950.0,107940.0,1.97714163]
[1750910799690,0.0903,107950.0,107940.0,1.59714163]
[1750910799991,0.0943,107950.0,107940.0,1.61243108]
[1750910800289,0.1271,107950.0,107940.0,1.590502]
[1750910800786,0.1231,107950.0,107940.0,1.590502]
[1750910800992,0.1251,107950.0,107940.0,1.590502]
[1750910801381,0.1271,107950.0,107940.0,1.590502]
[1750910801592,0.15537608,107950.0,107940.0,1.590502]
[1750910801793,0.15337608,107950.0,107940.0,1.590502]
[1750910802092,0.15337608,107950.0,107940.0,1.592502]
[1750910802490,0.1251,107950.0,107940.0,1.592502]
[1750910803084,0.3102693,107950.0,107940.0,1.592502]
[1750910804086,0.3425693,107950.0,107940.0,1.592502]
[1750910804689,0.1574,107950.0,107940.0,1.592502]
[1750910805393,0.1574,107950.0,107940.0,1.31434677]
[1750910805595,0.1574,107950.0,107940.0,1.592502]
[1750910806989,0.0923,107950.0,107940.0,1.592502]
[1750910807191,0.0923,107950.0,107940.0,1.625602]
[1750910807495,0.0923,107950.0,107940.0,1.995602]
[1750910809294,0.0633,107960.0,107950.0,0.1851693]
[1750910809485,0.0633,107960.0,107950.0,0.85462453]
[1750910809486,0.4159,107960.0,107950.0,0.85462453]
[1750910809692,0.4159,107960.0,107950.0,1.16462453]
[1750910810595,0.4189,107960.0,107950.0,1.16462453]
[1750910810799,0.4189,107960.0,107950.0,1.18777453]
[1750910810992,0.4159,107960.0,107950.0,1.18777453]
[1750910811187,0.4169,107960.0,107950.0,0.5996193]
[1750910811392,0.4169,107960.0,107950.0,0.87777453]
[1750910811597,0.4189,107960.0,107950.0,0.87777453]
[1750910812495,0.4179,107960.0,107950.0,0.87777453]
[1750910814899,0.3556,107960.0,107950.0,1.25057453]
[1750910815102,0.0632,107970.0,107960.0,0.1851521]
[1750910815403,0.2632,107970.0,107960.0,1.90276733]
[1750910816202,0.2632,107970.0,107960.0,1.90376733]
[1750910816604,0.0632,107970.0,107960.0,1.90376733]
[1750910816899,0.0326,107980.0,107970.0,0.185135]
[1750910817104,0.0326,107980.0,107970.0,1.17409023]
[1750910817105,0.41462822,107980.0,107970.0,1.17409023]
[1750910817304,0.17462822,107980.0,107970.0,1.17559023]
[1750910817604,0.001,107990.0,107980.0,0.1861178]
[1750910817897,0.0334,107990.0,107980.0,1.94046258]
[1750910818491,0.0334,107990.0,107980.0,1.58046258]
[1750910818695,0.0334,107990.0,107980.0,1.94246258]
[1750910819406,0.003,107990.0,107980.0,1.94246258]
[1750910820606,0.003,107990.0,107980.0,1.66430735]
[1750910820806,0.003,107990.0,107980.0,1.94246258]
[1750910821006,0.0351,107990.0,107980.0,1.98246258]
[1750910821806,0.0674,107990.0,107980.0,1.98246258]
[1750910822006,0.2525007,107990.0,107980.0,0.93212735]
[1750910822309,0.0674,107990.0,107980.0,1.91856258]
[1750910822512,0.0674,107990.0,107980.0,1.91956258]
[1750910824303,0.2525007,107990.0,107980.0,1.91956258]
[1750910824505,0.0674,107990.0,107980.0,1.94976258]
[1750910824806,0.005,107990.0,107980.0,1.98086258]
[1750910825508,0.003,107990.0,107980.0,1.98186258]
[1750910826807,0.5931202,108020.0,107990.0,0.0462715]
[1750910827013,0.29065985,108020.0,108010.0,0.82402163]
[1750910827305,0.68425985,108020.0,108010.0,1.2554664]
[1750910827509,0.96241508,108020.0,108010.0,1.2554664]
[1750910827708,0.68425985,108020.0,108010.0,1.2554664]
[1750910828607,0.68525985,108020.0,108010.0,1.2554664]
[1750910830213,0.68525985,108020.0,108010.0,1.53362163]
[1750910830800,0.68525985,108020.0,108010.0,1.54285183]
[1750910832213,0.24393965,108020.0,108010.0,1.54285183]
[1750910832413,0.18063965,108020.0,108010.0,1.54285183]
[1750910832613,0.18063965,108020.0,108010.0,1.63715183]
[1750910832912,0.15033965,108020.0,108010.0,1.63715183]
[1750910833410,0.002,108020.0,108010.0,1.98715183]
[1750910833615,0.002,108020.0,108010.0,1.95791183]
[1750910833910,0.002,108020.0,108010.0,0.92755183]
[1750910834109,0.2170493,108020.0,108010.0,1.33884267]
[1750910834316,0.34163178,108020.0,108010.0,1.33884267]
[1750910834514,0.34163178,108020.0,108010.0,0.9065979]
[1750910834710,0.34163178,108020.0,108010.0,1.6173579]
[1750910834910,0.34163178,108020.0,108010.0,0.9372979]
[1750910835111,0.34163178,108020.0,108010.0,1.6483779]
[1750910835616,0.34163178,108020.0,108010.0,1.6408179]
[1750910835814,0.34163178,108020.0,108010.0,1.6409779]
[1750910836115,0.34163178,108020.0,108010.0,1.36282267]
[1750910836316,0.34163178,108020.0,108010.0,1.6409779]
[1750910836518,0.36163178,108020.0,108010.0,0.9297379]
[1750910836713,0.36163178,108020.0,108010.0,1.6411779]
[1750910837812,0.36163178,108020.0,108010.0,1.6421779]
[1750910839221,0.36163178,108020.0,108010.0,1.6411779]
[1750910839415,0.31163178,108020.0,108010.0,0.64235247]
[1750910839716,0.33163178,108020.0,108010.0,1.6340677]
[1750910841110,0.33163178,108020.0,108010.0,0.92986735]
[1750910841511,0.33163178,108020.0,108010.0,1.64342735]
[1750910842615,0.33163178,108020.0,108010.0,0.92986735]
[1750910842817,1.05243178,108020.0,108010.0,0.99507247]
[1750910843021,0.69163178,108020.0,108010.0,0.99507247]
[1750910843324,0.69163178,108020.0,108010.0,1.2732277]
[1750910844419,0.69163178,108020.0,108010.0,1.28237678]
[1750910845618,0.69163178,108020.0,108010.0,0.28155247]
[1750910845824,1.51574701,108020.0,108010.0,0.0020764]
[1750910849719,0.1850664,108010.0,108000.0,0.1850832]
[1750910849923,1.29620411,108010.0,108000.0,0.1850832]
[1750910851323,0.1850836,108000.0,107990.0,0.7756752]
[1750910851525,0.56376608,108000.0,107990.0,0.7756752]
[1750910851825,0.62486608,108000.0,107990.0,0.7756752]
[1750910853527,0.62486608,108000.0,107990.0,0.7776752]
[1750910853923,0.38486608,108000.0,107990.0,0.7776752]
[1750910854123,0.62486608,108000.0,107990.0,0.7776752]
[1750910854818,0.30486608,108000.0,107990.0,0.7776752]
[1750910855026,0.38486608,108000.0,107990.0,1.05583043]
[1750910855224,0.38486608,108000.0,107990.0,1.08843043]
[1750910855525,0.38496417,108000.0,107990.0,1.09043043]
[1750910856136,0.64496417,108000.0,107990.0,0.7796752]
[1750910856425,0.68496417,108000.0,107990.0,0.7796752]
[1750910856622,0.68496417,108000.0,107990.0,0.6424352]
[1750910856821,0.9631194,108000.0,107990.0,0.1890869]
[1750910858031,0.68496417,108000.0,107990.0,0.1890869]
[1750910859822,1.04576417,108000.0,107990.0,0.004]
[1750910860024,1.9009194,108000.0,107990.0,0.004]